fUSD/lending_fUSD_20241004
["ID","MTS","AMOUNT","RATE_DAILY","PERIOD"]
[339856918,1728072657155,-500.0,0.00038082,120]
[339856919,1728072657165,-500.0,0.00038082,7]
[339856920,1728072657174,-621.73,0.00038082,120]
[339856921,1728072657183,-500.0,0.00038082,120]
[339856922,1728072657192,-635.45426194,0.00038082,120]
[339856923,1728072657205,-593.63,0.00038082,120]
[339856924,1728072657214,-500.0,0.00038082,120]
[339856925,1728072657224,-500.0,0.00038082,120]
[339856926,1728072657235,-500.0,0.00038082,120]
[339856927,1728072657246,-500.0,0.00038082,120]
[339856928,1728072657256,-736.09,0.00038082,120]
[339856929,1728072657265,-500.0,0.00038082,120]
[339856930,1728072657276,-629.92350566,0.00038082,120]
[339856931,1728072657286,-521.49,0.00038082,120]
[339856932,1728072657296,-845.86,0.00038082,120]
[339856933,1728072657307,-867.68,0.00038082,120]
[339856934,1728072657317,-500.0,0.00038082,120]
[339856935,1728072657329,-500.0,0.00038082,120]
[339856936,1728072657340,-500.0,0.00038082,120]
[339856937,1728072657351,-500.0,0.00038082,120]
[339856938,1728072657360,-645.66,0.00038082,120]
[339856939,1728072657370,-625.52,0.00038082,120]
[339856940,1728072657381,-692.74,0.00038082,120]
[339856941,1728072657392,-500.0,0.00038082,120]
[339856942,1728072657402,-526.31,0.00038082,120]
[339856943,1728072657413,-500.0,0.00038082,120]
[339856944,1728072657423,-542.75,0.00038082,120]
[339856945,1728072657434,-500.0,0.00038082,120]
[339856946,1728072657445,-1018.13,0.00038082,120]
[339856947,1728072657457,-500.0,0.00038082,120]
[339856948,1728072657467,-733.84,0.00038082,120]
[339856949,1728072657478,-500.0,0.00038082,120]
[339856950,1728072657489,-500.0,0.00038082,120]
[339856951,1728072657501,-500.0,0.00038082,120]
[339856952,1728072657511,-500.0,0.00038082,120]
[339856953,1728072657520,-500.0,0.00038082,120]
[339856954,1728072657529,-500.0,0.00038082,120]
[339856955,1728072657538,-632.41,0.00038082,120]
[339856956,1728072657550,-515.7,0.00038082,120]
[339856957,1728072657562,-397.21288867,0.00038082,120]
[339856958,1728072657572,-500.0,0.00038082,120]
[339856959,1728072657584,-615.85,0.00038082,120]
[339856960,1728072657595,-500.0,0.00038082,120]
[339856961,1728072657605,-814.37,0.00038082,120]
[339856962,1728072657615,-749.53,0.00038082,120]
[339856963,1728072657627,-1419.44,0.00038082,120]
[339856964,1728072657638,-1657.52,0.00038082,120]
[339856965,1728072657649,-500.0,0.00038082,120]
[339856966,1728072657660,-562.7,0.00038082,120]
[339856967,1728072657670,-500.0,0.00038082,120]
[339856968,1728072657682,-500.0,0.00038082,120]
[339856969,1728072657692,-2805.53,0.00038082,120]
[339856970,1728072657702,-508.83,0.00038082,120]
[339856971,1728072657712,-615.24,0.00038082,120]
[339856972,1728072657722,-500.0,0.00038082,120]
[339856973,1728072657733,-500.0,0.00038082,120]
[339856974,1728072657744,-1212.97,0.00038082,120]
[339856975,1728072657764,-1217.4,0.00038082,120]
[339856976,1728072657775,-500.0,0.00038082,120]
[339856977,1728072657785,-1231.73,0.00038082,120]
[339856978,1728072657977,-532.52,0.00038082,120]
[339856979,1728072657988,-855.6,0.00038082,120]
[339856980,1728072657999,-500.0,0.00038082,21]
[339856981,1728072658008,-1012.3,0.00038082,120]
[339856982,1728072658018,-500.0,0.00038082,120]
[339856983,1728072658028,-500.0,0.00038082,14]
[339856984,1728072658037,-500.0,0.00038082,120]
[339856985,1728072658046,-1440.62,0.00038082,120]
[339856986,1728072658057,-500.0,0.00038082,120]
[339856987,1728072658066,-566.19,0.00038082,120]
[339856988,1728072658075,-659.64,0.00038082,120]
[339856989,1728072658084,-500.0,0.00038082,120]
[339856990,1728072658094,-1844.03,0.00038082,120]
[339856991,1728072658103,-3111.13,0.00038082,120]
[339856992,1728072658113,-500.0,0.00038082,120]
[339856993,1728072658122,-686.44,0.00038082,120]
[339856994,1728072658131,-168.13808428,0.00038082,120]
[339856995,1728072658141,-500.0,0.00038082,120]
[339856996,1728072658150,-500.0,0.00038082,120]
[339856997,1728072658159,-1560.97,0.00038082,120]
[339856998,1728072658168,-500.0,0.00038083,120]
[339856999,1728072658177,-1336.45,0.00038083,120]
[339857000,1728072658186,-500.0,0.00038083,120]
[339857001,1728072658195,-1336.48,0.00038083,120]
[339857002,1728072658204,-500.0,0.00038083,120]
[339857003,1728072658213,-538.94,0.00038083,120]
[339857004,1728072658222,-500.0,0.00038083,120]
[339857005,1728072658231,-757.12,0.00038083,120]
[339857006,1728072658240,-616.09,0.00038083,120]
[339857007,1728072658255,-513.98969502,0.00038083,120]
[339857008,1728072658264,-500.0,0.00038083,120]
[339857009,1728072658273,-500.0,0.00038083,120]
[339857010,1728072658282,-1132.41,0.00038083,120]
[339857011,1728072658291,-894.14,0.00038083,120]
[339857012,1728072658300,-592.05,0.00038083,120]
[339857013,1728072658309,-500.0,0.00038083,120]
[339857014,1728072658318,-500.0,0.00038083,120]
[339857015,1728072658327,-671.38,0.00038083,120]
[339857016,1728072658335,-1846.3,0.00038083,120]
[339857017,1728072658344,-500.0,0.00038083,120]
[339857018,1728072658354,-889.97,0.00038083,120]
[339857019,1728072658363,-500.0,0.00038083,120]
[339857020,1728072658372,-4058.58,0.00038083,120]
[339857021,1728072658381,-628.76,0.00038083,120]
[339857022,1728072658391,-3402.8,0.00038083,120]
[339857023,1728072658400,-1784.25,0.00038083,120]
[339857024,1728072658409,-326.486781,0.00038083,120]
[339857025,1728072658418,-755.9,0.00038083,120]
[339857026,1728072658427,-500.0,0.00038083,120]
[339857027,1728072658437,-970.91,0.00038083,120]
[339857028,1728072658446,-2014.6,0.00038083,120]
[339857029,1728072658455,-1456.9,0.00038083,120]
[339857030,1728072658464,-716.18,0.00038083,120]
[339857031,1728072658474,-520.29,0.00038083,120]
[339857032,1728072658482,-500.0,0.00038083,120]
[339857033,1728072658491,-828.01,0.00038083,120]
[339857034,1728072658506,-500.0,0.00038083,120]
[339857035,1728072658515,-1292.56,0.00038083,120]
[339857036,1728072658524,-1500.46,0.00038083,120]
[339857037,1728072658533,-635.49,0.00038083,120]
[339857038,1728072658542,-500.0,0.00038083,120]
[339857039,1728072658551,-500.0,0.00038083,120]
[339857040,1728072658560,-759.42,0.00038083,120]
[339857041,1728072658569,-500.0,0.00038083,120]
[339857042,1728072658578,-500.0,0.00038083,120]
[339857043,1728072658588,-2225.9,0.00038083,120]
[339857044,1728072658597,-1528.96,0.00038083,120]
[339857045,1728072658606,-500.0,0.00038083,120]
[339857046,1728072658616,-500.0,0.00038083,120]
[339857047,1728072658625,-523.46,0.00038083,120]
[339857048,1728072658635,-3051.38,0.00038083,120]
[339857049,1728072658644,-679.09,0.00038083,120]
[339857050,1728072658653,-898.65,0.00038083,120]
[339857051,1728072658663,-500.0,0.00038083,120]
[339857052,1728072658672,-897.3,0.00038083,120]
[339857053,1728072658681,-275.33030907,0.00038083,120]
[339857054,1728072658691,-756.0,0.00038083,120]
[339857055,1728072658700,-1596.18,0.00038083,120]
[339857056,1728072658709,-500.0,0.00038083,120]
[339857057,1728072658719,-1964.44,0.00038083,120]
[339857058,1728072658728,-500.0,0.00038083,120]
[339857059,1728072658738,-548.42,0.00038083,120]
[339857060,1728072658749,-500.0,0.00038083,120]
[339857061,1728072658758,-500.0,0.00038083,120]
[339857062,1728072658768,-669.72,0.00038083,120]
[339857063,1728072658777,-346.47,0.00038083,120]
[339857064,1728072658788,-500.0,0.00038083,120]
[339857065,1728072658797,-500.0,0.00038083,120]
[339857066,1728072658806,-680.07,0.00038083,120]
[339857067,1728072658815,-500.0,0.00038083,120]
[339857068,1728072658824,-500.0,0.00038083,120]
[339857069,1728072658833,-500.0,0.00038083,120]
[339857070,1728072658843,-615.31,0.00038083,120]
[339857071,1728072658852,-608.59,0.00038083,120]
[339857072,1728072658861,-500.0,0.00038083,120]
[339857073,1728072658870,-500.0,0.00038083,120]
[339857074,1728072658879,-500.0,0.00038083,120]
[339857075,1728072658889,-451.53823552,0.00038083,120]
[339857076,1728072658898,-500.0,0.00038083,120]
[339857077,1728072658907,-500.0,0.00038083,120]
[339857078,1728072658917,-500.0,0.00038083,120]
[339857079,1728072658927,-500.0,0.00038083,120]
[339857080,1728072658936,-604.81,0.00038083,120]
[339857081,1728072658945,-368.38945805,0.00038083,120]
[339857082,1728072658956,-500.0,0.00038083,120]
[339857083,1728072658967,-500.0,0.00038083,120]
[339857084,1728072658977,-500.0,0.00038083,120]
[339857085,1728072658987,-500.0,0.00038083,120]
[339857086,1728072658998,-500.0,0.00038083,120]
[339857087,1728072659008,-500.0,0.00038083,120]
[339857088,1728072659018,-536.9,0.00038083,120]
[339857089,1728072659027,-500.0,0.00038083,120]
[339857090,1728072659036,-500.0,0.00038083,120]
[339857091,1728072659045,-500.0,0.00038083,120]
[339857092,1728072659055,-500.0,0.00038083,120]
[339857093,1728072659065,-500.0,0.00038083,120]
[339857094,1728072659075,-626.73,0.00038083,120]
[339857095,1728072659084,-500.0,0.00038083,120]
[339857096,1728072659093,-500.0,0.00038083,120]
[339857097,1728072659104,-987.54,0.00038083,120]
[339857098,1728072659116,-532.05593776,0.00038083,120]
[339857099,1728072659127,-500.0,0.00038083,120]
[339857100,1728072659136,-500.0,0.00038083,120]
[339857101,1728072659146,-500.0,0.00038083,120]
[339857102,1728072659155,-500.0,0.00038083,120]
[339857103,1728072659165,-500.0,0.00038083,120]
[339857104,1728072659175,-500.0,0.00038083,120]
[339857105,1728072659187,-500.0,0.00038083,120]
[339857106,1728072659197,-500.0,0.00038083,120]
[339857107,1728072659207,-504.11,0.00038083,120]
[339857108,1728072659216,-500.0,0.00038083,120]
[339857109,1728072659226,-500.0,0.00038083,120]
[339857110,1728072659235,-500.0,0.00038083,120]
[339857111,1728072659245,-1250.07,0.00038083,120]
[339857112,1728072659254,-500.0,0.00038083,120]
[339857113,1728072659262,-500.0,0.00038083,120]
[339857114,1728072659271,-534.02,0.00038083,120]
[339857115,1728072659281,-293.36265238,0.00038083,120]
[339857116,1728072659290,-500.0,0.00038083,120]
[339857117,1728072659299,-767.38,0.00038083,120]
[339857118,1728072659308,-676.97,0.00038083,120]
[339857119,1728072659318,-616.08,0.00038083,120]
[339857120,1728072659327,-1132.33,0.00038083,24]
[339857121,1728072659336,-500.0,0.00038083,120]
[339857122,1728072659345,-500.0,0.00038083,120]
[339857123,1728072659355,-426.46924599,0.00038083,120]
[339857124,1728072659364,-500.0,0.00038083,120]
[339857125,1728072659373,-2379.6,0.00038083,120]
[339857126,1728072659382,-500.0,0.00038083,120]
[339857127,1728072659392,-500.0,0.00038083,120]
[339857128,1728072659401,-500.0,0.00038083,120]
[339857129,1728072659410,-664.66,0.00038083,120]
[339857130,1728072659420,-500.0,0.00038083,120]
[339857131,1728072659429,-500.0,0.00038083,120]
[339857132,1728072659438,-1331.28,0.00038083,120]
[339857133,1728072659449,-500.0,0.00038083,120]
[339857134,1728072659459,-1012.06,0.00038083,120]
[339857135,1728072659470,-500.0,0.00038083,120]
[339857136,1728072659482,-818.68,0.00038083,120]
[339857137,1728072659492,-500.0,0.00038083,120]
[339857138,1728072659503,-500.0,0.00038083,120]
[339857139,1728072659511,-500.0,0.00038083,120]
[339857140,1728072659520,-500.0,0.00038083,120]
[339857141,1728072659529,-538.99,0.00038083,120]
[339857142,1728072659539,-676.85,0.00038083,120]
[339857143,1728072659547,-500.0,0.00038083,120]
[339857144,1728072659557,-3067.57,0.00038083,120]
[339857145,1728072659567,-500.0,0.00038083,120]
[339857146,1728072659578,-500.0,0.00038083,120]
[339857147,1728072659588,-500.0,0.00038083,120]
[339857148,1728072659599,-150.0,0.00038084,7]
[339857149,1728072659610,-500.0,0.00038084,120]
[339857150,1728072659620,-500.0,0.00038084,120]
[339857151,1728072659631,-322.99,0.00038084,120]
[339857152,1728072659641,-537.09,0.00038084,120]
[339857153,1728072659651,-820.07,0.00038084,120]
[339857154,1728072659661,-500.0,0.00038084,120]
[339857155,1728072659671,-498.61848979,0.00038084,120]
[339857156,1728072659680,-633.53,0.00038084,120]
[339857157,1728072659689,-500.0,0.00038084,120]
[339857158,1728072659699,-810.03,0.00038084,120]
[339857159,1728072659708,-500.0,0.00038084,120]
[339857160,1728072659719,-500.0,0.00038084,120]
[339857161,1728072659728,-500.0,0.00038084,120]
[339857162,1728072659738,-500.0,0.00038084,120]
[339857163,1728072659747,-500.0,0.00038084,120]
[339857164,1728072659756,-500.0,0.00038084,120]
[339857165,1728072659765,-500.0,0.00038084,120]
[339857166,1728072659775,-500.0,0.00038084,120]
[339857167,1728072659784,-500.0,0.00038084,120]
[339857168,1728072659793,-500.0,0.00038084,120]
[339857169,1728072659803,-560.87,0.00038084,120]
[339857170,1728072659812,-535.45,0.00038084,120]
[339857171,1728072659822,-500.0,0.00038084,120]
[339857172,1728072659831,-500.0,0.00038084,120]
[339857173,1728072659841,-500.0,0.00038084,120]
[339857174,1728072659851,-500.0,0.00038084,120]
[339857175,1728072659860,-500.0,0.00038084,120]
[339857176,1728072659869,-551.22633977,0.00038084,120]
[339857177,1728072659878,-500.0,0.00038084,120]
[339857178,1728072659888,-2000.0,0.00038084,2]
[339857179,1728072659897,-500.0,0.00038084,120]
[339857180,1728072659907,-500.0,0.00038084,120]
[339857181,1728072659916,-500.0,0.00038084,120]
[339857182,1728072659926,-500.0,0.00038084,120]
[339857183,1728072659935,-779.62,0.00038084,120]
[339857184,1728072659945,-556.65460092,0.00038084,120]
[339857185,1728072659954,-201.32973181,0.00038084,120]
[339857186,1728072659963,-500.0,0.00038084,120]
[339857187,1728072659972,-550.0,0.00038084,120]
[339857188,1728072659984,-150.0,0.00038084,120]
[339857189,1728072659993,-1880.23,0.00038084,120]
[339857190,1728072660003,-500.0,0.00038084,120]
[339857191,1728072660013,-429.94855003,0.00038084,120]
[339857192,1728072660023,-500.0,0.00038084,120]
[339857193,1728072660032,-500.0,0.00038084,120]
[339857194,1728072660042,-509.89,0.00038084,120]
[339857195,1728072660052,-364.81010613,0.00038084,120]
[339857196,1728072660061,-500.0,0.00038084,120]
[339857197,1728072660072,-500.0,0.00038084,120]
[339857198,1728072660081,-500.0,0.00038085,120]
[339857199,1728072660090,-847.37,0.00038085,120]
[339857200,1728072660099,-503.13426772,0.00038085,120]
[339857201,1728072660108,-500.0,0.00038085,120]
[339857202,1728072660117,-500.0,0.00038085,120]
[339857203,1728072660126,-500.0,0.00038085,120]
[339857204,1728072660135,-500.0,0.00038085,120]
[339857205,1728072660144,-500.0,0.00038085,120]
[339857206,1728072660153,-376.90725827,0.00038085,120]
[339857207,1728072660162,-454.88160109,0.00038085,120]
[339857208,1728072660171,-500.0,0.00038085,120]
[339857209,1728072660180,-500.0,0.00038085,120]
[339857210,1728072660189,-500.0,0.00038085,120]
[339857211,1728072660198,-500.0,0.00038085,120]
[339857212,1728072660209,-500.0,0.00038085,120]
[339857213,1728072660218,-561.67,0.00038085,120]
[339857214,1728072660228,-683.76,0.00038085,120]
[339857215,1728072660287,-507.49,0.00038085,120]
[339857216,1728072660297,-628.61,0.00038085,120]
[339857217,1728072660307,-500.0,0.00038085,120]
[339857218,1728072660317,-604.91,0.00038085,120]
[339857219,1728072660326,-500.0,0.00038085,120]
[339857220,1728072660336,-500.0,0.00038085,120]
[339857221,1728072660347,-500.0,0.00038085,120]
[339857222,1728072660357,-511.93,0.00038085,120]
[339857223,1728072660367,-736.13,0.00038085,120]
[339857224,1728072660375,-500.0,0.00038085,120]
[339857225,1728072660386,-2117.96,0.00038085,120]
[339857226,1728072660396,-500.0,0.00038085,120]
[339857227,1728072660405,-1972.03,0.00038085,120]
[339857228,1728072660414,-500.0,0.00038094,120]
[339857229,1728072660422,-500.0,0.00038094,120]
[339857230,1728072660432,-500.0,0.00038094,120]
[339857231,1728072660441,-500.0,0.00038094,120]
[339857232,1728072660450,-500.0,0.00038094,120]
[339857233,1728072660459,-500.0,0.00038094,120]
[339857234,1728072660468,-500.0,0.00038094,120]
[339857235,1728072660477,-500.0,0.00038094,120]
[339857236,1728072660486,-500.0,0.00038094,120]
[339857237,1728072660495,-500.0,0.00038094,120]
[339857238,1728072660505,-500.0,0.00038094,120]
[339857239,1728072660514,-1174.22,0.00038094,120]
[339857240,1728072660523,-500.0,0.00038094,120]
[339857241,1728072660532,-1319.52,0.00038094,120]
[339857242,1728072660541,-500.0,0.00038094,120]
[339857243,1728072660550,-367.523444,0.00038097,7]
[339857244,1728072660565,-150.0,0.000381,7]
[339857245,1728072660583,-150.0,0.00038104,7]
[339857246,1728072660594,-367.523444,0.00038139,7]
[339857247,1728072660604,-150.0,0.00038141,7]
[339857248,1728072660613,-151.100504,0.00038148,120]
[339857249,1728072660622,-150.0,0.00038154,7]
[339857250,1728072660631,-150.0,0.00038165,7]
[339857251,1728072660640,-367.523444,0.00038182,7]
[339857252,1728072660649,-150.0,0.00038197,7]
[339857253,1728072660658,-150.0,0.00038205,7]
[339857254,1728072660667,-367.523444,0.00038224,7]
[339857255,1728072660676,-150.0,0.0003825,7]
[339857256,1728072660685,-150.0,0.00038254,7]
[339857257,1728072660694,-150.0,0.00038255,7]
[339857258,1728072660704,-150.0,0.00038257,7]
[339857259,1728072660713,-367.523444,0.00038267,7]
[339857260,1728072660722,-150.0,0.00038306,7]
[339857261,1728072660732,-367.523444,0.00038309,7]
[339857262,1728072660741,-150.0,0.00038311,7]
[339857263,1728072660752,-150.0,0.00038348,7]
[339857264,1728072660761,-151.100504,0.00038348,120]
[339857265,1728072660771,-367.523444,0.00038352,7]
[339857266,1728072660780,-500.0,0.00038356,120]
[339857267,1728072660789,-500.0,0.00038356,120]
[339857268,1728072660798,-420.22288748,0.00038356,120]
[339857269,1728072660807,-500.0,0.00038356,120]
[339857270,1728072660816,-500.0,0.00038356,120]
[339857271,1728072660825,-500.0,0.00038356,120]
[339857272,1728072660834,-500.0,0.00038356,7]
[339857273,1728072660843,-621.73,0.00038356,120]
[339857274,1728072660852,-500.0,0.00038356,120]
[339857275,1728072660861,-593.63,0.00038356,120]
[339857276,1728072660870,-500.0,0.00038356,120]
[339857277,1728072660879,-500.0,0.00038356,120]
[339857278,1728072660888,-500.0,0.00038356,120]
[339857279,1728072660897,-500.0,0.00038356,120]
[339857280,1728072660906,-736.09,0.00038356,120]
[339857281,1728072660916,-500.0,0.00038356,120]
[339857282,1728072660925,-521.49,0.00038356,120]
[339857283,1728072660934,-845.86,0.00038356,120]
[339857284,1728072660943,-867.68,0.00038356,120]
[339857285,1728072660952,-500.0,0.00038356,120]
[339857286,1728072660961,-500.0,0.00038356,120]
[339857287,1728072660971,-500.0,0.00038356,120]
[339857288,1728072660984,-500.0,0.00038356,120]
[339857289,1728072660993,-645.66,0.00038356,120]
[339857290,1728072661011,-625.52,0.00038356,120]
[339857291,1728072661021,-692.74,0.00038356,120]
[339857292,1728072661031,-500.0,0.00038356,120]
[339857293,1728072661040,-526.31,0.00038356,120]
[339857294,1728072661049,-500.0,0.00038356,120]
[339857295,1728072661060,-542.75,0.00038356,120]
[339857296,1728072661069,-500.0,0.00038356,120]
[339857297,1728072661078,-1018.13,0.00038356,120]
[339857298,1728072661087,-500.0,0.00038356,120]
[339857299,1728072661096,-733.84,0.00038356,120]
[339857300,1728072661105,-500.0,0.00038356,120]
[339857301,1728072661114,-500.0,0.00038356,120]
[339857302,1728072661123,-500.0,0.00038356,120]
[339857303,1728072661133,-500.0,0.00038356,120]
[339857304,1728072661142,-500.0,0.00038356,120]
[339857305,1728072661151,-500.0,0.00038356,120]
[339857306,1728072661160,-632.41,0.00038356,120]
[339857307,1728072661169,-515.7,0.00038356,120]
[339857308,1728072661178,-500.0,0.00038356,120]
[339857309,1728072661188,-615.85,0.00038356,120]
[339857310,1728072661197,-500.0,0.00038356,120]
[339857311,1728072661207,-814.37,0.00038356,120]
[339857312,1728072661216,-749.53,0.00038356,120]
[339857313,1728072661225,-1419.44,0.00038356,120]
[339857314,1728072661234,-1657.52,0.00038356,120]
[339857315,1728072661243,-562.7,0.00038356,120]
[339857316,1728072661255,-500.0,0.00038356,120]
[339857317,1728072661264,-500.0,0.00038356,120]
[339857318,1728072661273,-500.0,0.00038356,120]
[339857319,1728072661282,-2805.53,0.00038356,120]
[339857320,1728072661291,-508.83,0.00038356,120]
[339857321,1728072661301,-615.24,0.00038356,120]
[339857322,1728072661310,-412.56291373,0.00038356,120]
[339857323,1728072661320,-500.0,0.00038356,120]
[339857324,1728072661329,-1212.97,0.00038356,120]
[339857325,1728072661338,-1217.4,0.00038356,120]
[339857326,1728072661346,-394.28,0.00038356,120]
[339857327,1728072661356,-1231.73,0.00038356,120]
[339857328,1728072661365,-532.52,0.00038356,120]
[339857329,1728072661374,-855.6,0.00038356,120]
[339857330,1728072661383,-500.0,0.00038356,21]
[339857331,1728072661392,-1012.3,0.00038356,120]
[339857332,1728072661401,-500.0,0.00038356,120]
[339857333,1728072661410,-500.0,0.00038356,14]
[339857334,1728072661419,-500.0,0.00038356,120]
[339857335,1728072661429,-1440.62,0.00038356,120]
[339857336,1728072661438,-500.0,0.00038356,120]
[339857337,1728072661447,-566.19,0.00038356,120]
[339857338,1728072661456,-659.64,0.00038356,120]
[339857339,1728072661465,-500.0,0.00038356,120]
[339857340,1728072661475,-1844.03,0.00038356,120]
[339857341,1728072661484,-3111.13,0.00038356,120]
[339857342,1728072661493,-500.0,0.00038356,120]
[339857343,1728072661504,-686.44,0.00038356,120]
[339857344,1728072661513,-500.0,0.00038356,120]
[339857345,1728072661522,-500.0,0.00038356,120]
[339857346,1728072661532,-1560.97,0.00038356,120]
[339857347,1728072661541,-150.0,0.00038357,7]
[339857348,1728072661550,-500.0,0.00038357,120]
[339857349,1728072661560,-1336.45,0.00038357,120]
[339857350,1728072661569,-500.0,0.00038357,120]
[339857351,1728072661578,-1336.48,0.00038357,120]
[339857352,1728072661587,-500.0,0.00038357,120]
[339857353,1728072661596,-538.94,0.00038357,120]
[339857354,1728072661605,-426.44982841,0.00038357,120]
[339857355,1728072661615,-757.12,0.00038357,120]
[339857356,1728072661625,-616.09,0.00038357,120]
[339857357,1728072661634,-500.0,0.00038357,120]
[339857358,1728072661643,-500.0,0.00038357,120]
[339857359,1728072661652,-1132.41,0.00038357,120]
[339857360,1728072661661,-894.14,0.00038357,120]
[339857361,1728072661670,-592.05,0.00038357,120]
[339857362,1728072661679,-500.0,0.00038357,120]
[339857363,1728072661688,-500.0,0.00038357,120]
[339857364,1728072661697,-671.38,0.00038357,120]
[339857365,1728072661706,-1846.3,0.00038357,120]
[339857366,1728072661715,-500.0,0.00038357,120]
[339857367,1728072661724,-889.97,0.00038357,120]
[339857368,1728072661733,-500.0,0.00038357,120]
[339857369,1728072661741,-4058.58,0.00038357,120]
[339857370,1728072661752,-628.76,0.00038357,120]
[339857371,1728072661762,-3402.8,0.00038357,120]
[339857372,1728072661771,-1784.25,0.00038357,120]
[339857373,1728072661780,-755.9,0.00038357,120]
[339857374,1728072661789,-500.0,0.00038357,120]
[339857375,1728072661798,-970.91,0.00038357,120]
[339857376,1728072661807,-2014.6,0.00038357,120]
[339857377,1728072661816,-1456.9,0.00038357,120]
[339857378,1728072661825,-716.18,0.00038357,120]
[339857379,1728072661835,-520.29,0.00038357,120]
[339857380,1728072661844,-500.0,0.00038357,120]
[339857381,1728072661853,-828.01,0.00038357,120]
[339857382,1728072661862,-500.0,0.00038357,120]
[339857383,1728072661871,-1292.56,0.00038357,120]
[339857384,1728072661881,-1500.46,0.00038357,120]
[339857385,1728072661890,-635.49,0.00038357,120]
[339857386,1728072661899,-500.0,0.00038357,120]
[339857387,1728072661908,-500.0,0.00038357,120]
[339857388,1728072661918,-759.42,0.00038357,120]
[339857389,1728072661927,-500.0,0.00038357,120]
[339857390,1728072661936,-500.0,0.00038357,120]
[339857391,1728072661946,-2225.9,0.00038357,120]
[339857392,1728072661957,-1528.96,0.00038357,120]
[339857393,1728072661967,-500.0,0.00038357,120]
[339857394,1728072661978,-500.0,0.00038357,120]
[339857395,1728072661990,-523.46,0.00038357,120]
[339857396,1728072662000,-3051.38,0.00038357,120]
[339857397,1728072662010,-679.09,0.00038357,120]
[339857398,1728072662019,-898.65,0.00038357,120]
[339857399,1728072662031,-500.0,0.00038357,120]
[339857400,1728072662042,-897.3,0.00038357,120]
[339857401,1728072662053,-756.0,0.00038357,120]
[339857402,1728072662070,-1596.18,0.00038357,120]
[339857403,1728072662079,-500.0,0.00038357,120]
[339857404,1728072662088,-1964.44,0.00038357,120]
[339857405,1728072662099,-500.0,0.00038357,120]
[339857406,1728072662110,-548.42,0.00038357,120]
[339857407,1728072662121,-500.0,0.00038357,120]
[339857408,1728072662130,-500.0,0.00038357,120]
[339857409,1728072662139,-669.72,0.00038357,120]
[339857410,1728072662149,-346.47,0.00038357,120]
[339857411,1728072662159,-500.0,0.00038357,120]
[339857412,1728072662170,-500.0,0.00038357,120]
[339857413,1728072662179,-680.07,0.00038357,120]
[339857414,1728072662190,-500.0,0.00038357,120]
[339857415,1728072662199,-500.0,0.00038357,120]
[339857416,1728072662209,-500.0,0.00038357,120]
[339857417,1728072662218,-615.31,0.00038357,120]